[Event "Late-Titled-Tuesday-Blitz-March-19-2024"]
[Site "Chess.com"]
[Date "2024.03.19"]
[Round "8"]
[White "Durarbayli"]
[Black "kids2010"]
[Result "1/2-1/2"]
[WhiteElo "2955"]
[BlackElo "2788"]
[TimeControl "180+1"]
[EndTime "15:29:22 PDT"]
[Termination "Game drawn by repetition"]

1. e4 {[%clk 0:03:00.9]} 1... c6 {[%clk 0:02:59.2]} 2. d4 {[%clk 0:03:00.4]}
2... d5 {[%clk 0:02:59.7]} 3. exd5 {[%clk 0:03:01.3]} 3... cxd5 {[%clk
0:03:00.4]} 4. c4 {[%clk 0:03:02]} 4... Nf6 {[%clk 0:03:00.1]} 5. Nc3 {[%clk
0:03:02.5]} 5... g6 {[%clk 0:03:00.8]} 6. Qb3 {[%clk 0:02:59.6]} 6... Bg7 {[%clk
0:03:01.1]} 7. cxd5 {[%clk 0:02:59.9]} 7... O-O {[%clk 0:03:01.6]} 8. Be2 {[%clk
0:03:00.5]} 8... Nbd7 {[%clk 0:02:57.2]} 9. Nh3 {[%clk 0:02:59.8]} 9... Nb6
{[%clk 0:02:57.2]} 10. Nf4 {[%clk 0:03:00.1]} 10... Bf5 {[%clk 0:02:08.7]} 11.
O-O {[%clk 0:02:55.9]} 11... a5 {[%clk 0:01:56.1]} 12. Be3 {[%clk 0:02:14.3]}
12... Qd6 {[%clk 0:01:46.4]} 13. Rac1 {[%clk 0:01:52.5]} 13... a4 {[%clk
0:01:27.4]} 14. Qb5 {[%clk 0:01:52]} 14... Rfc8 {[%clk 0:01:09.2]} 15. Rfe1
{[%clk 0:01:24.1]} 15... Bd7 {[%clk 0:01:03.6]} 16. Qd3 {[%clk 0:01:17.1]} 16...
Nfxd5 {[%clk 0:01:00.5]} 17. Nfxd5 {[%clk 0:01:05.4]} 17... Nxd5 {[%clk
0:01:00.7]} 18. Ne4 {[%clk 0:01:03.2]} 18... Qb4 {[%clk 0:00:48.9]} 19. a3
{[%clk 0:01:00.4]} 19... Qxb2 {[%clk 0:00:36.5]} 20. Rb1 {[%clk 0:00:56.6]}
20... Qc2 {[%clk 0:00:35]} 21. Rxb7 {[%clk 0:00:49.6]} 21... Qxd3 {[%clk
0:00:32.2]} 22. Bxd3 {[%clk 0:00:50.5]} 22... Bf5 {[%clk 0:00:32.5]} 23. Kf1
{[%clk 0:00:34.5]} 23... e6 {[%clk 0:00:30.9]} 24. Ke2 {[%clk 0:00:33.7]} 24...
Bxe4 {[%clk 0:00:29.8]} 25. Bxe4 {[%clk 0:00:34.6]} 25... Nc3+ {[%clk
0:00:29.9]} 26. Kd3 {[%clk 0:00:35.2]} 26... Nxe4 {[%clk 0:00:30.4]} 27. Kxe4
{[%clk 0:00:36.1]} 27... Bf8 {[%clk 0:00:26.1]} 28. Ra1 {[%clk 0:00:29.2]} 28...
Rc3 {[%clk 0:00:26.1]} 29. Bc1 {[%clk 0:00:25]} 29... Rc2 {[%clk 0:00:18.3]} 30.
Kf3 {[%clk 0:00:22.1]} 30... Rac8 {[%clk 0:00:17.7]} 31. Be3 {[%clk 0:00:18.1]}
31... Ra8 {[%clk 0:00:18]} 32. Bc1 {[%clk 0:00:17.2]} 32... Rc3+ {[%clk
0:00:17.7]} 33. Ke2 {[%clk 0:00:16.9]} 33... Rac8 {[%clk 0:00:17.9]} 34. Bd2
{[%clk 0:00:11.2]} 34... Rxa3 {[%clk 0:00:16.9]} 35. Rxa3 {[%clk 0:00:11.7]}
35... Bxa3 {[%clk 0:00:17.5]} 36. Ra7 {[%clk 0:00:12.2]} 36... Rc4 {[%clk
0:00:17.6]} 37. Kd3 {[%clk 0:00:12.3]} 37... Rc8 {[%clk 0:00:16.6]} 38. Rxa4
{[%clk 0:00:12]} 38... Bf8 {[%clk 0:00:16.9]} 39. h4 {[%clk 0:00:10.3]} 39... h5
{[%clk 0:00:17.3]} 40. g3 {[%clk 0:00:10.4]} 40... Bg7 {[%clk 0:00:17.6]} 41.
Be3 {[%clk 0:00:11]} 41... Bf6 {[%clk 0:00:18]} 42. Ke4 {[%clk 0:00:11.6]} 42...
Kg7 {[%clk 0:00:18.6]} 43. Ra7 {[%clk 0:00:11.8]} 43... Rd8 {[%clk 0:00:19]} 44.
Ra6 {[%clk 0:00:12.2]} 44... Rc8 {[%clk 0:00:19.4]} 45. d5 {[%clk 0:00:11.1]}
45... Rc4+ {[%clk 0:00:19.1]} 46. Kd3 {[%clk 0:00:09.2]} 46... exd5 {[%clk
0:00:19.6]} 47. Rd6 {[%clk 0:00:09.7]} 47... Rc3+ {[%clk 0:00:19.7]} 48. Ke2
{[%clk 0:00:09.7]} 48... Rc2+ {[%clk 0:00:16.7]} 49. Kd3 {[%clk 0:00:09.3]}
49... Ra2 {[%clk 0:00:09.9]} 50. Rxd5 {[%clk 0:00:09.1]} 50... Ra3+ {[%clk
0:00:10.2]} 51. Ke4 {[%clk 0:00:09.5]} 51... Ra4+ {[%clk 0:00:10.6]} 52. Kf3
{[%clk 0:00:09.9]} 52... Ra3 {[%clk 0:00:11.3]} 53. Rd7 {[%clk 0:00:10.5]} 53...
Ra4 {[%clk 0:00:11.5]} 54. Ke2 {[%clk 0:00:10.5]} 54... Rg4 {[%clk 0:00:11.8]}
55. Bf4 {[%clk 0:00:05.3]} 55... Bxh4 {[%clk 0:00:08.3]} 56. f3 {[%clk
0:00:04.5]} 56... Rxg3 {[%clk 0:00:08.3]} 57. Be5+ {[%clk 0:00:03.2]} 57... Kh6
{[%clk 0:00:05.5]} 58. Bxg3 {[%clk 0:00:02.9]} 58... Bxg3 {[%clk 0:00:06.4]} 59.
Rxf7 {[%clk 0:00:03.2]} 59... Kg5 {[%clk 0:00:07]} 60. Kf1 {[%clk 0:00:02]}
60... Bf4 {[%clk 0:00:07.2]} 61. Kg2 {[%clk 0:00:02.9]} 61... Be5 {[%clk
0:00:07.1]} 62. Rb7 {[%clk 0:00:03.6]} 62... Bf4 {[%clk 0:00:07.6]} 63. Rb5+
{[%clk 0:00:04.5]} 63... Kf6 {[%clk 0:00:07.9]} 64. Kh3 {[%clk 0:00:05.3]} 64...
g5 {[%clk 0:00:07.6]} 65. Rb6+ {[%clk 0:00:05.9]} 65... Kg7 {[%clk 0:00:08.2]}
66. Rb4 {[%clk 0:00:05.9]} 66... Kg6 {[%clk 0:00:08.5]} 67. Rc4 {[%clk
0:00:05.7]} 67... Kg7 {[%clk 0:00:09]} 68. Kg2 {[%clk 0:00:06.3]} 68... Kg6
{[%clk 0:00:09.4]} 69. Kf1 {[%clk 0:00:07]} 69... Kg7 {[%clk 0:00:09.9]} 70. Ke2
{[%clk 0:00:07.6]} 70... Kf6 {[%clk 0:00:10.6]} 71. Kf1 {[%clk 0:00:07.6]} 71...
Kg6 {[%clk 0:00:11.2]} 72. Kg2 {[%clk 0:00:07.1]} 72... Kg7 {[%clk 0:00:11.8]}
73. Rc6 {[%clk 0:00:07.3]} 73... Kh7 {[%clk 0:00:11.4]} 74. Rf6 {[%clk
0:00:07.3]} 74... Kg7 {[%clk 0:00:11.8]} 75. Rf5 {[%clk 0:00:07.8]} 75... Kg6
{[%clk 0:00:12]} 76. Rd5 {[%clk 0:00:08.5]} 76... Kg7 {[%clk 0:00:12.7]} 77. Ra5
{[%clk 0:00:08.3]} 77... Kh7 {[%clk 0:00:13.3]} 78. Ra6 {[%clk 0:00:08.7]} 78...
Kg7 {[%clk 0:00:13.7]} 79. Kf1 {[%clk 0:00:09.3]} 79... Kh7 {[%clk 0:00:14.3]}
80. Ke2 {[%clk 0:00:10]} 80... Kg7 {[%clk 0:00:14.8]} 81. Kd3 {[%clk 0:00:10.6]}
81... h4 {[%clk 0:00:14.8]} 82. Ke2 {[%clk 0:00:09.2]} 82... h3 {[%clk 0:00:15]}
83. Kf1 {[%clk 0:00:08.7]} 83... h2 {[%clk 0:00:15.9]} 84. Kg2 {[%clk 0:00:09]}
84... Kh7 {[%clk 0:00:16.6]} 85. Rc6 {[%clk 0:00:07.5]} 85... Kg7 {[%clk
0:00:17.1]} 86. Re6 {[%clk 0:00:07.7]} 86... Kf7 {[%clk 0:00:17.2]} 87. Rh6
{[%clk 0:00:07.3]} 87... Kg7 {[%clk 0:00:17.6]} 88. Rb6 {[%clk 0:00:06.7]} 88...
Kf7 {[%clk 0:00:18]} 89. Rc6 {[%clk 0:00:06.6]} 89... Kg7 {[%clk 0:00:18.5]} 90.
Rc4 {[%clk 0:00:06.6]} 90... Kf7 {[%clk 0:00:18.9]} 91. Rxf4+ {[%clk 0:00:06.9]}
91... gxf4 {[%clk 0:00:19.2]} 92. Kxh2 {[%clk 0:00:07.8]} 92... Kg6 {[%clk
0:00:19.4]} 93. Kh3 {[%clk 0:00:08.3]} 93... Kg5 {[%clk 0:00:19.9]} 94. Kg2
{[%clk 0:00:08.7]} 94... Kh4 {[%clk 0:00:20.8]} 95. Kh2 {[%clk 0:00:09.1]} 95...
Kh5 {[%clk 0:00:21.4]} 96. Kh3 {[%clk 0:00:10]} 96... Kg5 {[%clk 0:00:22]} 97.
Kg2 {[%clk 0:00:10.4]} 97... Kh4 {[%clk 0:00:22.9]} 98. Kh2 {[%clk 0:00:10.6]}
98... Kh5 {[%clk 0:00:23.5]} 99. Kh3 {[%clk 0:00:11.5]} 99... Kg5 {[%clk
0:00:24.1]} 1/2-1/2

[Event "Late-Titled-Tuesday-Blitz-March-19-2024"]
[Site "Chess.com"]
[Date "2024.03.19"]
[Round "8"]
[White "Sinquefield"]
[Black "karinachess1"]
[Result "1/2-1/2"]
[WhiteElo "2529"]
[BlackElo "2622"]
[TimeControl "180+1"]
[EndTime "15:29:23 PDT"]
[Termination "Game drawn by repetition"]

1. e4 {[%clk 0:03:00.9]} 1... e5 {[%clk 0:02:59.5]} 2. Nf3 {[%clk 0:03:00.4]}
2... Nc6 {[%clk 0:02:59.9]} 3. d4 {[%clk 0:02:59.6]} 3... exd4 {[%clk
0:02:59.9]} 4. Bc4 {[%clk 0:03:00.1]} 4... Nf6 {[%clk 0:02:59.7]} 5. O-O {[%clk
0:02:59.5]} 5... Nxe4 {[%clk 0:02:58.9]} 6. Re1 {[%clk 0:02:59.9]} 6... d5
{[%clk 0:02:58.9]} 7. Bxd5 {[%clk 0:03:00.5]} 7... Qxd5 {[%clk 0:02:58.8]} 8.
Nc3 {[%clk 0:03:01.2]} 8... Qa5 {[%clk 0:02:57]} 9. Nxe4 {[%clk 0:03:00.4]} 9...
Be6 {[%clk 0:02:57.4]} 10. Neg5 {[%clk 0:03:00.5]} 10... O-O-O {[%clk
0:02:55.4]} 11. Nxe6 {[%clk 0:03:00.7]} 11... fxe6 {[%clk 0:02:56.3]} 12. Rxe6
{[%clk 0:03:01.2]} 12... Bd6 {[%clk 0:02:48.1]} 13. Qe2 {[%clk 0:02:54.6]} 13...
h6 {[%clk 0:02:43.2]} 14. Bd2 {[%clk 0:02:41.5]} 14... Qd5 {[%clk 0:02:34]} 15.
Qe4 {[%clk 0:02:39.2]} 15... Qxe4 {[%clk 0:02:25.1]} 16. Rxe4 {[%clk 0:02:40.1]}
16... Rhe8 {[%clk 0:02:25.1]} 17. Rae1 {[%clk 0:02:39.8]} 17... Rxe4 {[%clk
0:02:21.3]} 18. Rxe4 {[%clk 0:02:40.7]} 18... Bc5 {[%clk 0:02:16.9]} 19. Ne1
{[%clk 0:02:37.5]} 19... Bb4 {[%clk 0:01:55.5]} 20. Bxb4 {[%clk 0:02:19.9]}
20... Nxb4 {[%clk 0:01:56.4]} 21. a3 {[%clk 0:02:20.1]} 21... Nc6 {[%clk
0:01:54.8]} 22. Nd3 {[%clk 0:02:19.7]} 22... b6 {[%clk 0:01:54.7]} 23. Re6
{[%clk 0:02:10.5]} 23... Kb7 {[%clk 0:01:40]} 24. f4 {[%clk 0:02:04.2]} 24...
Rf8 {[%clk 0:01:15.7]} 25. g4 {[%clk 0:01:41]} 25... Na5 {[%clk 0:01:04.7]} 26.
Re7 {[%clk 0:01:30.1]} 26... g5 {[%clk 0:01:00.1]} 27. f5 {[%clk 0:01:28.4]}
27... Nc6 {[%clk 0:00:52.7]} 28. Re6 {[%clk 0:01:26.9]} 28... h5 {[%clk
0:00:51.9]} 29. gxh5 {[%clk 0:01:13.8]} 29... Rxf5 {[%clk 0:00:51.8]} 30. h6
{[%clk 0:01:14.2]} 30... Rf7 {[%clk 0:00:51.4]} 31. Rg6 {[%clk 0:01:14]} 31...
Rh7 {[%clk 0:00:51.4]} 32. Kg2 {[%clk 0:01:11.5]} 32... a5 {[%clk 0:00:46.1]}
33. Kg3 {[%clk 0:01:10.5]} 33... Nd8 {[%clk 0:00:45.8]} 34. Ne5 {[%clk
0:01:00.4]} 34... Re7 {[%clk 0:00:38.2]} 35. Rg7 {[%clk 0:00:43.8]} 35... Rxe5
{[%clk 0:00:38.5]} 36. h7 {[%clk 0:00:44.2]} 36... Re3+ {[%clk 0:00:39]} 37. Kg2
{[%clk 0:00:31.5]} 37... Ne6 {[%clk 0:00:30.5]} 38. h8=Q {[%clk 0:00:25.4]}
38... Nxg7 {[%clk 0:00:28.4]} 39. Qxg7 {[%clk 0:00:25.3]} 39... Re2+ {[%clk
0:00:28.5]} 40. Kg3 {[%clk 0:00:23.5]} 40... Rxc2 {[%clk 0:00:28.7]} 41. Qxd4
{[%clk 0:00:23.1]} 41... Rc5 {[%clk 0:00:26.9]} 42. b4 {[%clk 0:00:18]} 42...
axb4 {[%clk 0:00:27.8]} 43. axb4 {[%clk 0:00:18.8]} 43... Rb5 {[%clk 0:00:28.3]}
44. Kg4 {[%clk 0:00:18.2]} 44... Kb8 {[%clk 0:00:15]} 45. Qc4 {[%clk 0:00:14.5]}
45... Re5 {[%clk 0:00:15.2]} 46. Qd4 {[%clk 0:00:09.9]} 46... Rb5 {[%clk
0:00:14]} 47. Qc3 {[%clk 0:00:08.3]} 47... Kb7 {[%clk 0:00:13]} 48. h3 {[%clk
0:00:07.9]} 48... Kb8 {[%clk 0:00:12.6]} 49. Qc4 {[%clk 0:00:07.9]} 49... Re5
{[%clk 0:00:12.5]} 50. Qd3 {[%clk 0:00:05.4]} 50... Kb7 {[%clk 0:00:12]} 51.
Qf3+ {[%clk 0:00:05.4]} 51... Kb8 {[%clk 0:00:12.3]} 52. Qd3 {[%clk 0:00:04.7]}
52... Kb7 {[%clk 0:00:12.4]} 53. b5 {[%clk 0:00:05.3]} 53... Rc5 {[%clk
0:00:11.1]} 54. Qe4+ {[%clk 0:00:02.9]} 54... Kb8 {[%clk 0:00:11.5]} 55. Qb4
{[%clk 0:00:03.4]} 55... Kb7 {[%clk 0:00:11.5]} 56. Qa4 {[%clk 0:00:03.9]} 56...
Kb8 {[%clk 0:00:11.5]} 57. Kg3 {[%clk 0:00:03.5]} 57... Kb7 {[%clk 0:00:11.7]}
58. Qa6+ {[%clk 0:00:03.8]} 58... Kb8 {[%clk 0:00:12.3]} 59. Qa4 {[%clk
0:00:02.9]} 59... Kb7 {[%clk 0:00:12.5]} 60. Qb4 {[%clk 0:00:03.3]} 60... Ka7
{[%clk 0:00:11.1]} 61. Qb1 {[%clk 0:00:03.6]} 61... Kb7 {[%clk 0:00:11.3]} 62.
h4 {[%clk 0:00:04.1]} 62... gxh4+ {[%clk 0:00:10.2]} 63. Kxh4 {[%clk 0:00:05]}
63... Kb8 {[%clk 0:00:10.6]} 64. Kg4 {[%clk 0:00:05.5]} 64... Kb7 {[%clk
0:00:11.1]} 65. Kf4 {[%clk 0:00:06.1]} 65... Kb8 {[%clk 0:00:09.3]} 66. Ke4
{[%clk 0:00:06.7]} 66... Kb7 {[%clk 0:00:09.5]} 67. Kd4 {[%clk 0:00:07.2]} 67...
Kb8 {[%clk 0:00:09.9]} 68. Qf1 {[%clk 0:00:07]} 68... Kb7 {[%clk 0:00:10.2]} 69.
Qf3+ {[%clk 0:00:06.8]} 69... Kb8 {[%clk 0:00:10.6]} 70. Qf7 {[%clk 0:00:04.6]}
70... Kb7 {[%clk 0:00:10.7]} 71. Qe8 {[%clk 0:00:03.8]} 71... Ka7 {[%clk
0:00:10.6]} 72. Qe7 {[%clk 0:00:03.7]} 72... Kb7 {[%clk 0:00:10.5]} 73. Qd7
{[%clk 0:00:03.3]} 73... Ka7 {[%clk 0:00:08.5]} 74. Qe8 {[%clk 0:00:02.9]} 74...
Kb7 {[%clk 0:00:08.5]} 75. Kd3 {[%clk 0:00:03.6]} 75... Ka7 {[%clk 0:00:05.9]}
76. Qc8 {[%clk 0:00:03.9]} 76... Rc1 {[%clk 0:00:03.4]} 77. Qa6+ {[%clk
0:00:03.5]} 77... Kb8 {[%clk 0:00:03.7]} 78. Kd4 {[%clk 0:00:04.2]} 78... Rc5
{[%clk 0:00:04]} 79. Qa4 {[%clk 0:00:04]} 79... Kb7 {[%clk 0:00:04.2]} 80. Qa6+
{[%clk 0:00:04.2]} 80... Kb8 {[%clk 0:00:04.8]} 81. Qa4 {[%clk 0:00:04.8]} 81...
Kb7 {[%clk 0:00:05.5]} 82. Qa6+ {[%clk 0:00:04.7]} 82... Kb8 {[%clk 0:00:06]}
1/2-1/2

[Event "Late-Titled-Tuesday-Blitz-March-19-2024"]
[Site "Chess.com"]
[Date "2024.03.19"]
[Round "8"]
[White "DeTimmerman"]
[Black "M1711"]
[Result "0-1"]
[WhiteElo "2752"]
[BlackElo "2667"]
[TimeControl "180+1"]
[EndTime "15:29:27 PDT"]
[Termination "M1711 won by resignation"]

1. b4 {[%clk 0:03:00.3]} 1... c5 {[%clk 0:02:50.1]} 2. bxc5 {[%clk 0:02:59.5]}
2... e5 {[%clk 0:02:48.6]} 3. e3 {[%clk 0:02:59.7]} 3... Bxc5 {[%clk 0:02:47.9]}
4. d4 {[%clk 0:02:59.8]} 4... exd4 {[%clk 0:02:46.6]} 5. exd4 {[%clk 0:03:00.7]}
5... Be7 {[%clk 0:02:45.7]} 6. Bd3 {[%clk 0:03:01.3]} 6... d5 {[%clk 0:02:45.5]}
7. Ne2 {[%clk 0:03:01.7]} 7... Nf6 {[%clk 0:02:45.5]} 8. O-O {[%clk 0:03:01]}
8... O-O {[%clk 0:02:45.7]} 9. Bf4 {[%clk 0:02:48.8]} 9... Nc6 {[%clk
0:02:45.4]} 10. c3 {[%clk 0:02:48.8]} 10... Bg4 {[%clk 0:02:43.4]} 11. Nd2
{[%clk 0:02:43.7]} 11... Re8 {[%clk 0:02:42.4]} 12. f3 {[%clk 0:02:40.6]} 12...
Bh5 {[%clk 0:02:38.6]} 13. Re1 {[%clk 0:02:41.1]} 13... Bg6 {[%clk 0:02:37.3]}
14. Bxg6 {[%clk 0:02:40.2]} 14... hxg6 {[%clk 0:02:38.2]} 15. Nc1 {[%clk
0:02:36.4]} 15... Nh5 {[%clk 0:02:30.4]} 16. Be3 {[%clk 0:02:32]} 16... Bd6
{[%clk 0:02:26.6]} 17. Nd3 {[%clk 0:02:25.8]} 17... Qf6 {[%clk 0:02:01.5]} 18.
Nf1 {[%clk 0:02:24.9]} 18... g5 {[%clk 0:01:58.8]} 19. Qd2 {[%clk 0:02:19.3]}
19... Nf4 {[%clk 0:01:57.3]} 20. Bxf4 {[%clk 0:02:16.1]} 20... gxf4 {[%clk
0:01:57]} 21. Rxe8+ {[%clk 0:02:14.6]} 21... Rxe8 {[%clk 0:01:56.3]} 22. Re1
{[%clk 0:02:15.5]} 22... Rc8 {[%clk 0:01:54.3]} 23. Qb2 {[%clk 0:02:11.8]} 23...
b6 {[%clk 0:01:49.6]} 24. Qb5 {[%clk 0:02:11.4]} 24... Ne7 {[%clk 0:01:49.6]}
25. Qb3 {[%clk 0:02:07.9]} 25... Qf5 {[%clk 0:01:36.8]} 26. Nf2 {[%clk 0:02:01]}
26... Ng6 {[%clk 0:01:21.2]} 27. Ng4 {[%clk 0:01:41.7]} 27... Nh4 {[%clk
0:01:14.1]} 28. Re2 {[%clk 0:01:27.9]} 28... Qg5 {[%clk 0:01:13.3]} 29. Kh1
{[%clk 0:01:21.5]} 29... Nf5 {[%clk 0:00:56.2]} 30. Ne5 {[%clk 0:01:17.6]} 30...
Ne7 {[%clk 0:00:38.6]} 31. c4 {[%clk 0:01:06.6]} 31... dxc4 {[%clk 0:00:29.2]}
32. Nxc4 {[%clk 0:01:07.5]} 32... Qd5 {[%clk 0:00:27.4]} 33. Nxd6 {[%clk
0:01:05]} 33... Qxd6 {[%clk 0:00:28.3]} 34. Rd2 {[%clk 0:00:32.9]} 34... Nf5
{[%clk 0:00:28.4]} 35. Qd3 {[%clk 0:00:32]} 35... Ne3 {[%clk 0:00:25.8]} 36. Kg1
{[%clk 0:00:30.1]} 36... Rc1 {[%clk 0:00:24.9]} 37. Rf2 {[%clk 0:00:22.4]} 37...
Rd1 {[%clk 0:00:24.7]} 38. Qe4 {[%clk 0:00:21.1]} 38... Qd7 {[%clk 0:00:15.9]}
39. Qxf4 {[%clk 0:00:20.8]} 39... Nxf1 {[%clk 0:00:07.2]} 40. Rxf1 {[%clk
0:00:21.7]} 40... Rxd4 {[%clk 0:00:07.8]} 41. Qb8+ {[%clk 0:00:20.6]} 41... Kh7
{[%clk 0:00:08]} 42. Qe5 {[%clk 0:00:16.5]} 42... Rd2 {[%clk 0:00:07.6]} 43. a3
{[%clk 0:00:13.2]} 43... Qd3 {[%clk 0:00:05.5]} 44. Qh5+ {[%clk 0:00:12.3]}
44... Kg8 {[%clk 0:00:05.7]} 45. Qg4 {[%clk 0:00:12.4]} 45... Qxa3 {[%clk
0:00:04.7]} 46. Qc8+ {[%clk 0:00:12.4]} 46... Qf8 {[%clk 0:00:04.5]} 47. Qc7
{[%clk 0:00:12.2]} 47... Qc5+ {[%clk 0:00:02.6]} 48. Qxc5 {[%clk 0:00:12.5]}
48... bxc5 {[%clk 0:00:03.5]} 49. Ra1 {[%clk 0:00:12.9]} 49... Rd7 {[%clk
0:00:03.7]} 50. Kf2 {[%clk 0:00:13.2]} 50... Kh7 {[%clk 0:00:02.5]} 51. Rc1
{[%clk 0:00:13.1]} 51... Rc7 {[%clk 0:00:02.9]} 52. Ke3 {[%clk 0:00:13]} 52...
Kg6 {[%clk 0:00:03.5]} 53. Kd3 {[%clk 0:00:13.1]} 53... Kf5 {[%clk 0:00:03.5]}
54. Kc4 {[%clk 0:00:13.6]} 54... Kf4 {[%clk 0:00:03.4]} 55. Re1 {[%clk
0:00:13.8]} 55... f5 {[%clk 0:00:03]} 56. Re6 {[%clk 0:00:13.5]} 56... g5 {[%clk
0:00:02.5]} 57. Rg6 {[%clk 0:00:06.2]} 57... Rh7 {[%clk 0:00:02.6]} 58. g3+
{[%clk 0:00:05.5]} 58... Kxf3 {[%clk 0:00:02.8]} 59. Rxg5 {[%clk 0:00:06.4]}
59... Ke4 {[%clk 0:00:02.1]} 60. h4 {[%clk 0:00:05.7]} 60... Rc7 {[%clk
0:00:01.9]} 61. Rg6 {[%clk 0:00:05.7]} 61... a5 {[%clk 0:00:01.2]} 62. Ra6
{[%clk 0:00:05.6]} 62... Rg7 {[%clk 0:00:01.8]} 63. Rxa5 {[%clk 0:00:05.3]}
63... Rxg3 {[%clk 0:00:02.4]} 64. Kxc5 {[%clk 0:00:06]} 64... Rh3 {[%clk
0:00:02]} 65. Kd6 {[%clk 0:00:06.7]} 65... f4 {[%clk 0:00:02.2]} 66. Ra4+ {[%clk
0:00:06.6]} 66... Kf5 {[%clk 0:00:02.6]} 67. Kd5 {[%clk 0:00:06.5]} 67... Rd3+
{[%clk 0:00:02.4]} 68. Kc4 {[%clk 0:00:06.7]} 68... Rd8 {[%clk 0:00:02.5]} 69.
Kc3 {[%clk 0:00:04.9]} 69... Kg4 {[%clk 0:00:02.8]} 70. h5 {[%clk 0:00:04.4]}
70... Rd6 {[%clk 0:00:01.6]} 71. h6 {[%clk 0:00:03.1]} 71... Rxh6 {[%clk
0:00:01.5]} 72. Kd2 {[%clk 0:00:04]} 72... Re6 {[%clk 0:00:02.1]} 73. Ra3 {[%clk
0:00:02.2]} 73... f3 {[%clk 0:00:02]} 74. Ra8 {[%clk 0:00:02.3]} 74... Kg3
{[%clk 0:00:02.2]} 75. Rg8+ {[%clk 0:00:03.2]} 75... Kf2 {[%clk 0:00:02.2]} 76.
Rg5 {[%clk 0:00:03.7]} 76... Kf1 {[%clk 0:00:02.4]} 77. Rg6 {[%clk 0:00:04.6]}
77... Rxg6 {[%clk 0:00:02.3]} 0-1